[Event "DVM U12w 2023"]
[Site "Magdeburg"]
[Date "2023.12.29"]
[Round "5"]
[White "Daaboul, Dima"]
[Black "Wilke, Ronja"]
[Result "1-0"]
[WhiteElo "1184"]
[BlackElo "1224"]
[PlyCount "53"]
[EventDate "2022.12.27"]
[EventType "team-tourn"]
[EventRounds "7"]
[EventCountry "GER"]
[TimeControl "40/5400+30:1800+30"]
[WhiteClock "0:45:16"]
[BlackClock "0:25:47"]

1. e4 {[%emt 0:00:03]} c6 {[%emt 0:00:06]} 2. d4 {[%emt 0:00:08]} d5 {[%emt 0:00:04]} 3. Nc3 {[%emt 0:00:13]} dxe4 {[%emt 0:02:45]} 4. Nxe4 {[%emt 0:00:11]} Bf5 {[%emt 0:00:52]} 5. Ng3 {[%emt 0:00:33]} Bg6 {[%emt 0:00:39]} 6. h4 {[%emt 0:00:37]} h5 {[%emt 0:02:48]} 7. Nf3 {[%emt 0:01:18]} e6 {[%emt 0:02:13]} 8. Bd3 {[%emt 0:01:21]} Bxd3 {[%emt 0:03:04]} 9. Qxd3 {[%emt 0:00:16]} Bd6 {[%emt 0:02:17]} 10. Ne4 {[%emt 0:07:06]} Ne7 {[%emt 0:05:08]} 11. Bd2 {[%emt 0:01:43]} Nf5 {[%emt 0:02:51]} 12. O-O-O {[%emt 0:02:33]} Qc7 {[%emt 0:02:24]} 13. Nxd6+ {[%emt 0:04:16]} Qxd6 {[%emt 0:00:43]} 14. Rde1 {[%emt 0:01:53]} Nd7 {[%emt 0:01:43]} 15. Qxf5 {[%emt 0:00:19]} Qe7 {[%emt 0:03:51]} 16. Qd3 {[%emt 0:01:16]} O-O-O {[%emt 0:01:09]} 17. Ba5 {[%emt 0:01:41]} Nb6 {[%emt 0:06:41]} 18. Qb3 {[%emt 0:02:18]} Kc7 {[%emt 0:02:54]} 19. Qc3 {[%emt 0:03:03]} Qf6 {[%emt 0:05:40]} 20. Rd1 {[%emt 0:03:17]} Kb8 {[%emt 0:02:00]} 21. Qb4 {[%emt 0:05:13]} Kc7 {[%emt 0:03:09]} 22. Rhe1 {[%emt 0:02:27]} Qf4+ {[%emt 0:03:38]} 23. Kb1 {[%emt 0:01:25]} Qg4 {[%emt 0:10:05]} 24. Ne5 {[%emt 0:05:18]} Qf4 {[%emt 0:01:15]} 25. Qe7+ {[%emt 0:05:35]} Kc8 {[%emt 0:04:08]} 26. Qxf7 {[%emt 0:02:10]} Rxd4 {[%emt 0:05:36]} 27. Qxe6+ {[%emt 0:02:31] normal} 1-0

[Event "DVM U12w 2023"]
[Site "Magdeburg"]
[Date "2023.12.29"]
[Round "5"]
[White "Subocz, Barbara"]
[Black "Ramien, Eva"]
[Result "0-1"]
[WhiteElo "1169"]
[BlackElo "1324"]
[PlyCount "72"]
[EventDate "2022.12.27"]
[EventType "team-tourn"]
[EventRounds "7"]
[EventCountry "GER"]
[TimeControl "40/5400+30:1800+30"]
[WhiteClock "0:55:52"]
[BlackClock "0:30:01"]

1. e4 {[%emt 0:00:02]} e5 {[%emt 0:00:08]} 2. Nf3 {[%emt 0:00:48]} Nc6 {[%emt 0:00:30]} 3. Bb5 {[%emt 0:00:06]} Bc5 {[%emt 0:00:22]} 4. O-O {[%emt 0:00:28]} Nf6 {[%emt 0:00:10]} 5. d3 {[%emt 0:01:22]} d6 {[%emt 0:01:00]} 6. h3 {[%emt 0:00:10]} h6 {[%emt 0:00:09]} 7. Be3 {[%emt 0:03:37]} Bd7 {[%emt 0:00:35]} 8. Nbd2 {[%emt 0:02:01]} O-O {[%emt 0:01:26]} 9. c3 {[%emt 0:04:33]} a6 {[%emt 0:00:27]} 10. Ba4 {[%emt 0:00:12]} b5 {[%emt 0:00:14]} 11. Bc2 {[%emt 0:00:15]} Be6 {[%emt 0:01:12]} 12. a3 {[%emt 0:02:15]} Ba7 {[%emt 0:00:41]} 13. d4 {[%emt 0:03:04]} exd4 {[%emt 0:01:06]} 14. cxd4 {[%emt 0:00:14]} Na5 {[%emt 0:12:21]} 15. b3 {[%emt 0:04:04]} c6 {[%emt 0:02:32]} 16. Rb1 {[%emt 0:00:39]} Re8 {[%emt 0:05:15]} 17. Nh2 {[%emt 0:02:35]} Rb8 {[%emt 0:09:36]} 18. Qf3 {[%emt 0:02:36]} Kf8 {[%emt 0:06:55]} 19. d5 {[%emt 0:03:58]} Bxe3 {[%emt 0:01:05]} 20. fxe3 {[%emt 0:00:24]} cxd5 {[%emt 0:00:29]} 21. exd5 {[%emt 0:00:08]} Bxd5 {[%emt 0:00:33]} 22. Qf4 {[%emt 0:01:21]} Nh5 {[%emt 0:06:39]} 23. Qf5 {[%emt 0:02:28]} Nf6 {[%emt 0:00:58]} 24. Ng4 {[%emt 0:00:32]} Be6 {[%emt 0:02:07]} 25. Qf4 {[%emt 0:00:40]} Nxg4 {[%emt 0:04:57]} 26. hxg4 {[%emt 0:00:20]} Qg5 {[%emt 0:02:04]} 27. Qxd6+ {[%emt 0:00:51]} Kg8 {[%emt 0:00:55]} 28. Qxa6 {[%emt 0:01:29]} Qxe3+ {[%emt 0:00:58]} 29. Kh1 {[%emt 0:00:11]} Qxd2 {[%emt 0:00:52]} 30. Be4 {[%emt 0:00:37]} Bxg4 {[%emt 0:02:33]} 31. Rbe1 {[%emt 0:03:25]} Be2 {[%emt 0:04:38]} 32. Qa7 {[%emt 0:01:26]} Bxf1 {[%emt 0:01:04]} 33. Rxf1 {[%emt 0:00:18]} Rf8 {[%emt 0:01:08]} 34. Qc5 {[%emt 0:01:32]} Qg5 {[%emt 0:01:32]} 35. Rf5 {[%emt 0:02:52]} Qh4+ {[%emt 0:00:56]} 36. Kg1 {[%emt 0:01:05]} Qxe4 {[%emt 0:00:22] normal} 0-1

[Event "DVM U12w 2023"]
[Site "Magdeburg"]
[Date "2023.12.29"]
[Round "5"]
[White "Piffczyk, Sandra"]
[Black "Cao, Weiqi"]
[Result "0-1"]
[WhiteElo "1105"]
[BlackElo "1191"]
[PlyCount "148"]
[EventDate "2022.12.27"]
[EventType "team-tourn"]
[EventRounds "7"]
[EventCountry "GER"]
[TimeControl "40/5400+30:1800+30"]
[WhiteClock "0:38:12"]
[BlackClock "1:17:34"]

1. e4 {[%emt 0:00:03]} d5 {[%emt 0:00:05]} 2. exd5 {[%emt 0:00:05]} Qxd5 {[%emt 0:00:05]} 3. Nc3 {[%emt 0:00:17]} Qd6 {[%emt 0:00:06]} 4. d4 {[%emt 0:00:57]} Nf6 {[%emt 0:00:19]} 5. Nb5 {[%emt 0:04:32]} Qd8 {[%emt 0:01:29]} 6. Bf4 {[%emt 0:00:32]} Nd5 {[%emt 0:01:48]} 7. Bg3 {[%emt 0:02:13]} c6 {[%emt 0:00:31]} 8. Na3 {[%emt 0:02:40]} Qa5+ {[%emt 0:00:53]} 9. Qd2 {[%emt 0:05:04]} Qxd2+ {[%emt 0:00:45]} 10. Kxd2 {[%emt 0:00:54]} Bf5 {[%emt 0:00:34]} 11. Nf3 {[%emt 0:01:59]} e6 {[%emt 0:00:50]} 12. c3 {[%emt 0:08:03]} Be7 {[%emt 0:01:45]} 13. Bc4 {[%emt 0:03:37]} O-O {[%emt 0:00:41]} 14. Ke2 {[%emt 0:04:02]} Nxc3+ {[%emt 0:00:47]} 15. bxc3 {[%emt 0:00:28]} Bxa3 {[%emt 0:00:08]} 16. Bd3 {[%emt 0:03:09]} Bxd3+ {[%emt 0:00:30]} 17. Kxd3 {[%emt 0:00:08]} Nd7 {[%emt 0:00:54]} 18. Rab1 {[%emt 0:03:02]} Rfd8 {[%emt 0:00:34]} 19. Ke2 {[%emt 0:01:17]} b6 {[%emt 0:03:37]} 20. Rhe1 {[%emt 0:01:52]} Nf6 {[%emt 0:04:04]} 21. Rb3 {[%emt 0:02:32]} Be7 {[%emt 0:01:28]} 22. Bh4 {[%emt 0:00:58]} Re8 {[%emt 0:02:09]} 23. Kf1 {[%emt 0:01:02]} Nd5 {[%emt 0:02:32]} 24. Bxe7 {[%emt 0:02:05]} Rxe7 {[%emt 0:00:39]} 25. c4 {[%emt 0:05:08]} Nf6 {[%emt 0:01:15]} 26. Ne5 {[%emt 0:03:51]} c5 {[%emt 0:03:39]} 27. dxc5 {[%emt 0:02:19]} bxc5 {[%emt 0:00:38]} 28. Rb5 {[%emt 0:02:39]} Rc7 {[%emt 0:01:41]} 29. Rd1 {[%emt 0:04:15]} Ne4 {[%emt 0:03:22]} 30. Rd7 {[%emt 0:04:46]} Rxd7 {[%emt 0:01:11]} 31. Nxd7 {[%emt 0:00:28]} Nd2+ {[%emt 0:00:52]} 32. Kg1 {[%emt 0:00:50]} Rd8 {[%emt 0:01:05]} 33. Nxc5 {[%emt 0:01:46]} Nxc4 {[%emt 0:00:07]} 34. h3 {[%emt 0:00:43]} h6 {[%emt 0:00:22]} 35. Rb7 {[%emt 0:01:18]} a5 {[%emt 0:00:53]} 36. Rb5 {[%emt 0:00:45]} Rd1+ {[%emt 0:00:16]} 37. Kh2 {[%emt 0:00:14]} Rd2 {[%emt 0:00:25]} 38. a4 {[%emt 0:01:05]} Rxf2 {[%emt 0:00:10]} 39. Nb3 {[%emt 0:01:01]} Rb2 {[%emt 0:00:49]} 40. Nxa5 {[%emt 0:00:23]} Rxb5 {[%emt 0:00:07]} 41. axb5 {[%emt 0:30:15]} Nxa5 {[%emt 0:30:03]} 42. Kg3 {[%emt 0:00:18]} Kf8 {[%emt 0:00:14]} 43. Kf4 {[%emt 0:00:08]} Ke7 {[%emt 0:00:09]} 44. Ke5 {[%emt 0:00:17]} f6+ {[%emt 0:00:27]} 45. Kd4 {[%emt 0:00:10]} Kd6 {[%emt 0:00:13]} 46. Ke4 {[%emt 0:00:31]} Kc5 {[%emt 0:00:06]} 47. Kf4 {[%emt 0:00:17]} Kxb5 {[%emt 0:00:11]} 48. Kg4 {[%emt 0:00:10]} g6 {[%emt 0:00:07]} 49. h4 {[%emt 0:00:09]} Kc5 {[%emt 0:00:10]} 50. Kf4 {[%emt 0:00:09]} Kd5 {[%emt 0:00:10]} 51. g4 {[%emt 0:00:04]} g5+ {[%emt 0:00:29]} 52. hxg5 {[%emt 0:00:13]} hxg5+ {[%emt 0:00:09]} 53. Kf3 {[%emt 0:00:14]} f5 {[%emt 0:00:15]} 54. gxf5 {[%emt 0:00:11]} exf5 {[%emt 0:00:05]} 55. Kg3 {[%emt 0:00:06]} Ke5 {[%emt 0:00:06]} 56. Kf3 {[%emt 0:00:07]} g4+ {[%emt 0:00:04]} 57. Kg3 {[%emt 0:00:04]} Ke4 {[%emt 0:00:06]} 58. Kf2 {[%emt 0:00:12]} f4 {[%emt 0:00:06]} 59. Kg2 {[%emt 0:00:09]} Ke3 {[%emt 0:00:08]} 60. Kf1 {[%emt 0:00:13]} f3 {[%emt 0:00:13]} 61. Kg1 {[%emt 0:00:25]} Ke2 {[%emt 0:00:09]} 62. Kh1 {[%emt 0:00:06]} f2 {[%emt 0:00:09]} 63. Kg2 {[%emt 0:00:05]} f1=R {[%emt 0:00:13]} 64. Kg3 {[%emt 0:00:10]} Rg1+ {[%emt 0:00:07]} 65. Kh2 {[%emt 0:00:06]} Rf1 {[%emt 0:00:18]} 66. Kg2 {[%emt 0:00:11]} Ke1 {[%emt 0:00:10]} 67. Kg3 {[%emt 0:00:12]} Rg1+ {[%emt 0:00:11]} 68. Kh2 {[%emt 0:00:12]} Rf1 {[%emt 0:00:17]} 69. Kg2 {[%emt 0:00:09]} Rf8 {[%emt 0:00:05]} 70. Kg3 {[%emt 0:00:13]} Rg8 {[%emt 0:00:06]} 71. Kg2 {[%emt 0:00:11]} g3 {[%emt 0:00:08]} 72. Kg1 {[%emt 0:00:07]} g2 {[%emt 0:00:11]} 73. Kh2 {[%emt 0:00:08]} g1=R {[%emt 0:00:09]} 74. Kh3 {[%emt 0:00:04]} Rh8# {[%emt 0:00:07] normal} 0-1

[Event "DVM U12w 2023"]
[Site "Magdeburg"]
[Date "2023.12.29"]
[Round "5"]
[White "Schmidt Guevara, Daniela"]
[Black "Ulianova, Anna"]
[Result "0-1"]
[WhiteElo "1083"]
[BlackElo "1036"]
[PlyCount "42"]
[EventDate "2022.12.27"]
[EventType "team-tourn"]
[EventRounds "7"]
[EventCountry "GER"]
[TimeControl "40/5400+30:1800+30"]
[WhiteClock "0:25:29"]
[BlackClock "1:20:50"]

1. e4 {[%emt 0:00:03]} e5 {[%emt 0:00:05]} 2. Nf3 {[%emt 0:00:10]} Nc6 {[%emt 0:00:04]} 3. Bc4 {[%emt 0:00:12]} Bc5 {[%emt 0:00:05]} 4. Nc3 {[%emt 0:00:17]} Nf6 {[%emt 0:00:15]} 5. d3 {[%emt 0:00:09]} h6 {[%emt 0:00:12]} 6. O-O {[%emt 0:00:29]} d6 {[%emt 0:00:22]} 7. h3 {[%emt 0:00:10]} O-O {[%emt 0:00:14]} 8. Bd2 {[%emt 0:01:40]} Be6 {[%emt 0:00:11]} 9. Bxe6 {[%emt 0:00:22]} fxe6 {[%emt 0:00:08]} 10. a3 {[%emt 0:01:02]} a5 {[%emt 0:01:12]} 11. b3 {[%emt 0:04:39]} Qe8 {[%emt 0:01:26]} 12. Qe1 {[%emt 0:03:42]} Nh5 {[%emt 0:02:07]} 13. Nb5 {[%emt 0:00:56]} Qg6 {[%emt 0:00:36]} 14. Be3 {[%emt 0:02:08]} Rxf3 {[%emt 0:00:34]} 15. Bxc5 {[%emt 0:00:41]} Nf4 {[%emt 0:00:29]} 16. g3 {[%emt 0:06:16]} Qh5 {[%emt 0:06:32]} 17. Qd1 {[%emt 0:10:48]} Rf8 {[%emt 0:03:00]} 18. h4 {[%emt 0:23:19]} Qg4 {[%emt 0:00:30]} 19. Re1 {[%emt 0:16:18]} Rxg3+ {[%emt 0:00:56]} 20. fxg3 {[%emt 0:01:08]} Qxg3+ {[%emt 0:00:27]} 21. Kf1 {[%emt 0:01:02]} Qg2# {[%emt 0:00:45] normal} 0-1

[Event "DVM U12w 2023"]
[Site "Magdeburg"]
[Date "2023.12.29"]
[Round "5"]
[White "Shakhimardanova, Nigina"]
[Black "Grunert, Greta"]
[Result "0-1"]
[WhiteElo "1067"]
[BlackElo "1288"]
[PlyCount "136"]
[EventDate "2022.12.27"]
[EventType "team-tourn"]
[EventRounds "7"]
[EventCountry "GER"]
[TimeControl "40/5400+30:1800+30"]
[WhiteClock "1:39:30"]
[BlackClock "0:33:24"]

1. e4 {[%emt 0:00:01]} c6 {[%emt 0:00:07]} 2. d4 {[%emt 0:00:11]} d5 {[%emt 0:00:09]} 3. Nc3 {[%emt 0:00:10]} dxe4 {[%emt 0:00:10]} 4. Nxe4 {[%emt 0:00:07]} Bf5 {[%emt 0:00:08]} 5. Nc3 {[%emt 0:00:19]} e6 {[%emt 0:00:29]} 6. Nf3 {[%emt 0:00:06]} Nf6 {[%emt 0:01:46]} 7. Bc4 {[%emt 0:00:07]} Bb4 {[%emt 0:00:30]} 8. O-O {[%emt 0:00:11]} O-O {[%emt 0:00:51]} 9. Bg5 {[%emt 0:00:11]} Re8 {[%emt 0:02:12]} 10. Qd2 {[%emt 0:01:29]} Nbd7 {[%emt 0:01:25]} 11. a3 {[%emt 0:00:10]} Ba5 {[%emt 0:00:55]} 12. b4 {[%emt 0:00:06]} Bc7 {[%emt 0:00:53]} 13. b5 {[%emt 0:00:06]} e5 {[%emt 0:02:04]} 14. d5 {[%emt 0:00:56]} c5 {[%emt 0:03:47]} 15. d6 {[%emt 0:02:01]} Ba5 {[%emt 0:00:41]} 16. Nh4 {[%emt 0:01:39]} Bxc3 {[%emt 0:08:50]} 17. Qxc3 {[%emt 0:00:20]} Ne4 {[%emt 0:02:36]} 18. Qe3 {[%emt 0:01:42]} Qxg5 {[%emt 0:01:11]} 19. Qxg5 {[%emt 0:00:11]} Nxg5 {[%emt 0:00:20]} 20. Nxf5 {[%emt 0:00:08]} Ne4 {[%emt 0:01:01]} 21. Rad1 {[%emt 0:00:27]} Rad8 {[%emt 0:02:53]} 22. Rfe1 {[%emt 0:00:21]} Ndf6 {[%emt 0:04:59]} 23. f3 {[%emt 0:01:15]} Nc3 {[%emt 0:03:15]} 24. Rd3 {[%emt 0:00:18]} Na4 {[%emt 0:00:57]} 25. Rb1 {[%emt 0:00:37]} Nb6 {[%emt 0:00:44]} 26. Ba2 {[%emt 0:00:53]} c4 {[%emt 0:04:12]} 27. Rd2 {[%emt 0:00:30]} Re6 {[%emt 0:05:42]} 28. Rbd1 {[%emt 0:00:13]} e4 {[%emt 0:10:50]} 29. Rd4 {[%emt 0:02:41]} exf3 {[%emt 0:02:14]} 30. gxf3 {[%emt 0:00:09]} Re5 {[%emt 0:03:12]} 31. Ng3 {[%emt 0:01:01]} Rd5 {[%emt 0:03:40]} 32. Bxc4 {[%emt 0:01:18]} Nxc4 {[%emt 0:01:52]} 33. Rxd5 {[%emt 0:00:11]} Nxd5 {[%emt 0:01:42]} 34. Rxd5 {[%emt 0:00:07]} Rxd6 {[%emt 0:00:52]} 35. Rxd6 {[%emt 0:00:06]} Nxd6 {[%emt 0:00:09]} 36. a4 {[%emt 0:00:03]} Kf8 {[%emt 0:00:17]} 37. Kf2 {[%emt 0:00:15]} Ke7 {[%emt 0:00:07]} 38. Ne4 {[%emt 0:00:44]} Nxe4+ {[%emt 0:00:29]} 39. fxe4 {[%emt 0:00:06]} Ke6 {[%emt 0:00:05]} 40. Ke3 {[%emt 0:00:06]} Ke5 {[%emt 0:00:05]} 41. c4 {[%emt 0:30:06]} f5 {[%emt 0:32:02]} 42. c5 {[%emt 0:00:36]} fxe4 {[%emt 0:00:18]} 43. c6 {[%emt 0:00:05]} bxc6 {[%emt 0:00:12]} 44. bxc6 {[%emt 0:00:06]} Kd6 {[%emt 0:00:08]} 45. Kxe4 {[%emt 0:00:08]} Kxc6 {[%emt 0:00:08]} 46. Kf5 {[%emt 0:00:07]} Kc5 {[%emt 0:00:17]} 47. Ke6 {[%emt 0:00:03]} Kb4 {[%emt 0:00:20]} 48. Kf7 {[%emt 0:00:03]} Kxa4 {[%emt 0:00:10]} 49. Kxg7 {[%emt 0:00:05]} h5 {[%emt 0:01:18]} 50. h4 {[%emt 0:00:02]} Kb4 {[%emt 0:00:07]} 51. Kg6 {[%emt 0:00:05]} a5 {[%emt 0:00:05]} 52. Kxh5 {[%emt 0:00:05]} a4 {[%emt 0:00:05]} 53. Kg6 {[%emt 0:00:04]} a3 {[%emt 0:00:04]} 54. h5 {[%emt 0:00:04]} a2 {[%emt 0:00:04]} 55. h6 {[%emt 0:00:10]} a1=Q {[%emt 0:00:05]} 56. h7 {[%emt 0:00:07]} Qe5 {[%emt 0:04:52]} 57. Kh6 {[%emt 0:00:31]} Qf6+ {[%emt 0:00:42]} 58. Kh5 {[%emt 0:00:12]} Kc5 {[%emt 0:00:20]} 59. Kg4 {[%emt 0:00:08]} Qg7+ {[%emt 0:00:00]} 60. Kf5 {[%emt 0:00:00]} Qxh7+ {[%emt 0:00:00]} 61. Ke6 {[%emt 0:00:00]} Qh5 {[%emt 0:00:10]} 62. Kd7 {[%emt 0:00:01]} Qg6 {[%emt 0:00:08]} 63. Ke7 {[%emt 0:00:10]} Kd5 {[%emt 0:00:11]} 64. Kd7 {[%emt 0:00:05]} Qg7+ {[%emt 0:00:08]} 65. Kc8 {[%emt 0:00:07]} Qe7 {[%emt 0:00:09]} 66. Kb8 {[%emt 0:00:08]} Qd7 {[%emt 0:00:05]} 67. Ka8 {[%emt 0:00:03]} Kc6 {[%emt 0:00:07]} 68. Kb8 {[%emt 0:00:07]} Qb7# {[%emt 0:00:16] normal} 0-1

[Event "DVM U12w 2023"]
[Site "Magdeburg"]
[Date "2023.12.29"]
[Round "5"]
[White "Lao, Theodora Siyuan"]
[Black "He, Siqi"]
[Result "0-1"]
[WhiteElo "1044"]
[BlackElo "812"]
[PlyCount "140"]
[EventDate "2022.12.27"]
[EventType "team-tourn"]
[EventRounds "7"]
[EventCountry "GER"]
[TimeControl "40/5400+30:1800+30"]
[WhiteClock "1:44:28"]
[BlackClock "1:36:52"]

1. e4 {[%emt 0:00:02]} e5 {[%emt 0:00:02]} 2. Nc3 {[%emt 0:00:06]} Nc6 {[%emt 0:00:02]} 3. g3 {[%emt 0:00:09]} Bc5 {[%emt 0:00:12]} 4. Bg2 {[%emt 0:00:11]} Nf6 {[%emt 0:00:15]} 5. Nge2 {[%emt 0:00:11]} d6 {[%emt 0:00:08]} 6. O-O {[%emt 0:00:13]} O-O {[%emt 0:00:10]} 7. d3 {[%emt 0:00:06]} Be6 {[%emt 0:00:12]} 8. Bg5 {[%emt 0:00:14]} h6 {[%emt 0:00:00]} 9. Be3 {[%emt 0:00:00]} Bb6 {[%emt 0:00:00]} 10. Re1 {[%emt 0:00:01]} Qe7 {[%emt 0:00:32]} 11. d4 {[%emt 0:00:20]} exd4 {[%emt 0:00:25]} 12. Nxd4 {[%emt 0:00:11]} Bxd4 {[%emt 0:00:38]} 13. Bxd4 {[%emt 0:00:10]} Nxd4 {[%emt 0:01:08]} 14. Qxd4 {[%emt 0:00:06]} c5 {[%emt 0:00:08]} 15. Qd1 {[%emt 0:00:16]} Rad8 {[%emt 0:00:28]} 16. Qe2 {[%emt 0:00:25]} Bg4 {[%emt 0:00:52]} 17. Qe3 {[%emt 0:00:21]} a6 {[%emt 0:02:00]} 18. e5 {[%emt 0:00:27]} dxe5 {[%emt 0:00:51]} 19. Qxe5 {[%emt 0:00:16]} Qxe5 {[%emt 0:00:09]} 20. Rxe5 {[%emt 0:00:08]} c4 {[%emt 0:00:40]} 21. Bxb7 {[%emt 0:00:20]} Nd7 {[%emt 0:00:14]} 22. Re4 {[%emt 0:00:18]} Be6 {[%emt 0:00:41]} 23. Bxa6 {[%emt 0:00:33]} Nc5 {[%emt 0:00:17]} 24. Rxc4 {[%emt 0:00:56]} Bxc4 {[%emt 0:00:08]} 25. Bxc4 {[%emt 0:00:06]} Rd2 {[%emt 0:00:36]} 26. Rc1 {[%emt 0:00:40]} Rb8 {[%emt 0:00:15]} 27. b3 {[%emt 0:00:24]} Ra8 {[%emt 0:01:14]} 28. a4 {[%emt 0:00:14]} Rb8 {[%emt 0:01:23]} 29. Kg2 {[%emt 0:00:40]} Nd7 {[%emt 0:01:13]} 30. Nb5 {[%emt 0:01:01]} Ne5 {[%emt 0:00:47]} 31. Bf1 {[%emt 0:00:39]} Rbd8 {[%emt 0:00:48]} 32. Kh3 {[%emt 0:00:38]} Rxf2 {[%emt 0:00:35]} 33. Bg2 {[%emt 0:00:38]} Rc8 {[%emt 0:00:40]} 34. c4 {[%emt 0:00:26]} Rb2 {[%emt 0:00:32]} 35. Rc3 {[%emt 0:00:46]} Nd7 {[%emt 0:02:02]} 36. Kh4 {[%emt 0:00:56]} Rxg2 {[%emt 0:00:30]} 37. h3 {[%emt 0:00:30]} Rb2 {[%emt 0:00:16]} 38. Nd6 {[%emt 0:00:46]} Rb8 {[%emt 0:00:13]} 39. Nb5 {[%emt 0:00:29]} Nc5 {[%emt 0:00:10]} 40. Nd4 {[%emt 0:00:32]} Nxb3 {[%emt 0:00:55]} 41. Nxb3 {[%emt 0:30:24]} R8xb3 {[%emt 0:30:26]} 42. Rxb3 {[%emt 0:00:09]} Rxb3 {[%emt 0:00:09]} 43. c5 {[%emt 0:00:06]} Rb4+ {[%emt 0:00:08]} 44. Kh5 {[%emt 0:00:10]} Rxa4 {[%emt 0:00:03]} 45. c6 {[%emt 0:00:04]} Ra8 {[%emt 0:00:11]} 46. Kg4 {[%emt 0:00:08]} Rc8 {[%emt 0:00:06]} 47. Kf5 {[%emt 0:00:02]} Rxc6 {[%emt 0:00:10]} 48. h4 {[%emt 0:00:14]} Rf6+ {[%emt 0:00:06]} 49. Kg4 {[%emt 0:00:21]} Rg6+ {[%emt 0:00:16]} 50. Kh3 {[%emt 0:00:10]} f5 {[%emt 0:00:13]} 51. Kg2 {[%emt 0:00:26]} f4 {[%emt 0:00:37]} 52. Kf3 {[%emt 0:00:17]} fxg3 {[%emt 0:00:07]} 53. Kg2 {[%emt 0:00:08]} Rg4 {[%emt 0:00:11]} 54. h5 {[%emt 0:00:12]} g6 {[%emt 0:00:10]} 55. hxg6 {[%emt 0:00:10]} Rxg6 {[%emt 0:00:06]} 56. Kh1 {[%emt 0:00:17]} h5 {[%emt 0:00:19]} 57. Kg2 {[%emt 0:00:09]} h4 {[%emt 0:00:07]} 58. Kh1 {[%emt 0:00:06]} h3 {[%emt 0:00:16]} 59. Kg1 {[%emt 0:00:05]} h2+ {[%emt 0:00:19]} 60. Kg2 {[%emt 0:00:08]} Ra6 {[%emt 0:00:23]} 61. Kh1 {[%emt 0:00:17]} g2+ {[%emt 0:00:12]} 62. Kxg2 {[%emt 0:00:10]} Rg6+ {[%emt 0:00:15]} 63. Kxh2 {[%emt 0:00:08]} Kf7 {[%emt 0:00:06]} 64. Kh3 {[%emt 0:00:08]} Kf6 {[%emt 0:00:07]} 65. Kh4 {[%emt 0:00:10]} Rg8 {[%emt 0:00:12]} 66. Kh5 {[%emt 0:00:14]} Kf7 {[%emt 0:00:28]} 67. Kh6 {[%emt 0:00:13]} Kf6 {[%emt 0:00:12]} 68. Kh7 {[%emt 0:00:13]} Rg1 {[%emt 0:00:08]} 69. Kh8 {[%emt 0:00:09]} Kf7 {[%emt 0:00:05]} 70. Kh7 {[%emt 0:00:09]} Rh1# {[%emt 0:00:09] normal} 0-1

[Event "DVM U12w 2023"]
[Site "Magdeburg"]
[Date "2023.12.29"]
[Round "5"]
[White "Weißleder, Emia"]
[Black "Nikitina, Alisa"]
[Result "1-0"]
[WhiteElo "1041"]
[BlackElo "1004"]
[PlyCount "93"]
[EventDate "2022.12.27"]
[EventType "team-tourn"]
[EventRounds "7"]
[EventCountry "GER"]
[TimeControl "40/5400+30:1800+30"]
[WhiteClock "1:07:23"]
[BlackClock "0:22:39"]

1. d4 {[%emt 0:00:01]} d5 {[%emt 0:00:21]} 2. Nc3 {[%emt 0:00:08]} Nf6 {[%emt 0:00:15]} 3. Bf4 {[%emt 0:00:10]} a6 {[%emt 0:01:26]} 4. f3 {[%emt 0:00:15]} Bf5 {[%emt 0:00:43]} 5. g4 {[%emt 0:00:22]} Bd7 {[%emt 0:00:50]} 6. h4 {[%emt 0:01:05]} Bb5 {[%emt 0:11:54]} 7. Qd2 {[%emt 0:02:28]} e6 {[%emt 0:04:03]} 8. a3 {[%emt 0:05:09]} Nc6 {[%emt 0:05:58]} 9. O-O-O {[%emt 0:02:53]} a5 {[%emt 0:02:26]} 10. Nxb5 {[%emt 0:01:37]} Nb4 {[%emt 0:04:11]} 11. Nxc7+ {[%emt 0:01:46]} Kd7 {[%emt 0:00:59]} 12. Nxa8 {[%emt 0:00:32]} Qxa8 {[%emt 0:00:29]} 13. Kb1 {[%emt 0:02:01]} Qa7 {[%emt 0:03:06]} 14. e3 {[%emt 0:01:30]} Be7 {[%emt 0:01:00]} 15. Qc3 {[%emt 0:02:06]} Rc8 {[%emt 0:01:42]} 16. Bb5+ {[%emt 0:01:27]} Kd8 {[%emt 0:01:17]} 17. Qd2 {[%emt 0:05:32]} b6 {[%emt 0:13:39]} 18. Nh3 {[%emt 0:01:00]} Rxc2 {[%emt 0:01:18]} 19. Qe1 {[%emt 0:00:51]} Rc8 {[%emt 0:03:52]} 20. Ng5 {[%emt 0:00:56]} Bf8 {[%emt 0:05:15]} 21. Rc1 {[%emt 0:02:37]} Rxc1+ {[%emt 0:06:01]} 22. Qxc1 {[%emt 0:00:06]} h6 {[%emt 0:02:01]} 23. Nh3 {[%emt 0:02:03]} Nd7 {[%emt 0:03:17]} 24. Qc3 {[%emt 0:01:12]} f6 {[%emt 0:01:14]} 25. Rc1 {[%emt 0:00:51]} Qb7 {[%emt 0:01:50]} 26. Bc7+ {[%emt 0:00:50]} Ke8 {[%emt 0:01:10]} 27. axb4 {[%emt 0:01:43]} axb4 {[%emt 0:00:12]} 28. Qc6 {[%emt 0:00:17]} Qxc6 {[%emt 0:00:48]} 29. Rxc6 {[%emt 0:00:19]} e5 {[%emt 0:01:22]} 30. Rxb6 {[%emt 0:00:22]} exd4 {[%emt 0:00:16]} 31. Rb8+ {[%emt 0:00:28]} Ke7 {[%emt 0:00:10]} 32. Bxd7 {[%emt 0:00:24]} d3 {[%emt 0:00:27]} 33. Kc1 {[%emt 0:00:32]} Kxd7 {[%emt 0:00:22]} 34. Rxf8 {[%emt 0:00:28]} Kxc7 {[%emt 0:00:10]} 35. Nf4 {[%emt 0:00:13]} b3 {[%emt 0:00:24]} 36. Nxd5+ {[%emt 0:00:10]} Kc6 {[%emt 0:00:29]} 37. Nb4+ {[%emt 0:00:06]} Kb5 {[%emt 0:00:22]} 38. Nxd3 {[%emt 0:00:04]} Kc4 {[%emt 0:00:24]} 39. Nf4 {[%emt 0:00:14]} g5 {[%emt 0:00:40]} 40. Ng6 {[%emt 0:00:12]} Kd3 {[%emt 0:00:56]} 41. hxg5 {[%emt 0:30:21]} hxg5 {[%emt 0:30:22]} 42. e4 {[%emt 0:00:25]} Ke3 {[%emt 0:00:27]} 43. Rxf6 {[%emt 0:00:10]} Kd4 {[%emt 0:01:00]} 44. e5 {[%emt 0:00:07]} Kd5 {[%emt 0:01:18]} 45. e6 {[%emt 0:00:11]} Kd6 {[%emt 0:00:10]} 46. e7+ {[%emt 0:00:16]} Kd7 {[%emt 0:00:15]} 47. Rf8 {[%emt 0:00:07] normal} 1-0